fUSD/lending_fUSD_20241223
["ID","MTS","AMOUNT","RATE_DAILY","PERIOD"]
[346438985,1734977441147,-569.05,0.00017254,2]
[346438986,1734977441156,-500.0,0.00017254,2]
[346438987,1734977441170,-500.0,0.00017254,2]
[346438988,1734977441180,-848.0,0.00017254,2]
[346438989,1734977441189,-1074.87,0.00017254,2]
[346438990,1734977441199,-14046.97,0.00017254,2]
[346438991,1734977441208,-500.0,0.00017254,2]
[346438992,1734977441217,-500.0,0.00017254,2]
[346438993,1734977441226,-500.0,0.00017254,2]
[346438994,1734977441235,-876.59,0.00017254,2]
[346438995,1734977441245,-786.72,0.00017254,2]
[346438996,1734977441254,-500.0,0.00017254,2]
[346438997,1734977441264,-500.0,0.00017254,2]
[346438998,1734977441273,-1238.05,0.00017254,2]
[346438999,1734977441282,-500.0,0.00017254,2]
[346439000,1734977441291,-500.0,0.00017254,2]
[346439001,1734977441301,-500.0,0.00017254,2]
[346439002,1734977441310,-3992.75,0.00017254,2]
[346439003,1734977441319,-1307.48,0.00017254,2]
[346439004,1734977441328,-3075.53,0.00017254,2]
[346439005,1734977441338,-516.72,0.00017254,2]
[346439006,1734977441347,-500.0,0.00017254,2]
[346439007,1734977441356,-19454.18,0.00017254,2]
[346439008,1734977441365,-502.1193411,0.00017254,2]
[346439009,1734977441374,-3415.95,0.00017254,2]
[346439010,1734977441384,-533.62,0.00017254,2]
[346439011,1734977441393,-2974.93,0.00017254,2]
[346439012,1734977441402,-504.62458144,0.00017254,2]
[346439013,1734977441411,-2746.23,0.00017254,2]
[346439014,1734977441420,-500.0,0.00017254,2]
[346439015,1734977441430,-1429.03,0.00017254,2]
[346439016,1734977441439,-4926.68,0.00017254,2]
[346439017,1734977441449,-870.24,0.00017254,2]
[346439018,1734977441463,-500.0,0.00017254,2]
[346439019,1734977441473,-2314.93,0.00017254,2]
[346439020,1734977441482,-500.0,0.00017254,2]
[346439021,1734977441491,-686.85,0.00017254,2]
[346439022,1734977441502,-1561.76,0.00017254,2]
[346439023,1734977441512,-500.0,0.00017254,2]
[346439024,1734977441521,-706.18,0.00017254,2]
[346439025,1734977441530,-794.41,0.00017254,2]
[346439026,1734977441539,-3965.64,0.00017254,2]
[346439027,1734977441548,-500.0,0.00017254,2]
[346439028,1734977441557,-3744.17,0.00017254,2]
[346439029,1734977441567,-500.0,0.00017254,2]
[346439030,1734977441576,-3529.73,0.00017254,2]
[346439031,1734977441586,-675.11,0.00017254,2]
[346439032,1734977441595,-538.34,0.00017254,2]
[346439033,1734977441605,-501.76769393,0.00017254,2]
[346439034,1734977441614,-796.58,0.00017254,2]
[346439035,1734977441624,-3727.03,0.00017254,2]
[346439036,1734977441634,-5046.59,0.00017254,2]
[346439037,1734977441644,-4391.32,0.00017254,2]
[346439038,1734977441653,-903.04,0.00017254,2]
[346439039,1734977441663,-535.74,0.00017254,2]
[346439040,1734977441672,-500.0,0.00017254,2]
[346439041,1734977441682,-500.0,0.00017254,2]
[346439042,1734977441691,-500.0,0.00017254,2]
[346439043,1734977441701,-2235.69,0.00017254,2]
[346439044,1734977441710,-7413.95,0.00017254,2]
[346439045,1734977441719,-8979.53,0.00017254,2]
[346439046,1734977441728,-500.0,0.00017254,2]
[346439047,1734977441737,-2705.58,0.00017254,2]
[346439048,1734977441747,-500.0,0.00017254,2]
[346439049,1734977441756,-12065.2,0.00017254,2]
[346439050,1734977441765,-500.0,0.00017254,2]
[346439051,1734977441774,-767.72,0.00017254,2]
[346439052,1734977441783,-500.0,0.00017254,2]
[346439053,1734977441792,-1746.39,0.00017254,2]
[346439054,1734977441802,-500.0,0.00017254,2]
[346439055,1734977441811,-1044.88,0.00017254,2]
[346439056,1734977441820,-1240.44,0.00017254,2]
[346439057,1734977441829,-500.0,0.00017254,2]
[346439058,1734977441838,-500.0,0.00017254,2]
[346439059,1734977441848,-500.0,0.00017254,2]
[346439060,1734977441857,-1076.04,0.00017254,2]
[346439061,1734977441867,-500.0,0.00017254,2]
[346439062,1734977441876,-500.0,0.00017254,2]
[346439063,1734977441886,-1647.96,0.00017254,2]
[346439064,1734977441896,-500.0,0.00017254,2]
[346439065,1734977441905,-6166.83,0.00017254,2]
[346439066,1734977441914,-5101.79,0.00017254,2]
[346439067,1734977441923,-500.0,0.00017254,2]
[346439068,1734977441932,-500.0,0.00017254,2]
[346439069,1734977441941,-500.0,0.00017254,2]
[346439070,1734977441951,-500.0,0.00017254,2]
[346439071,1734977441960,-173.59306876,0.00017254,2]
[346439072,1734977441969,-4805.72,0.00017254,2]
[346439073,1734977441980,-649.1,0.00017254,2]
[346439074,1734977441989,-500.0,0.00017254,2]
[346439075,1734977441998,-501.66366882,0.00017254,2]
[346439076,1734977442008,-1067.73,0.00017254,2]
[346439077,1734977442017,-22770.54,0.00017254,2]
[346439078,1734977442026,-500.0,0.00017254,2]
[346439079,1734977442035,-5276.45,0.00017254,2]
[346439080,1734977442044,-500.0,0.00017254,2]
[346439081,1734977442054,-500.0,0.00017254,2]
[346439082,1734977442063,-500.0,0.00017254,2]
[346439083,1734977442072,-500.0,0.00017254,2]
[346439084,1734977442082,-14805.43,0.00017254,2]
[346439085,1734977442092,-2015.49,0.00017254,2]
[346439086,1734977442103,-500.0,0.00017254,2]
[346439087,1734977442113,-500.0,0.00017254,2]
[346439088,1734977442123,-500.0,0.00017255,2]
[346439089,1734977442135,-2602.05,0.00017255,2]
[346439090,1734977442145,-500.0,0.00017255,2]
[346439091,1734977442154,-1801.52,0.00017255,2]
[346439092,1734977442163,-785.45,0.00017255,2]
[346439093,1734977442172,-1714.52,0.00017255,2]
[346439094,1734977442181,-567.68,0.00017255,2]
[346439095,1734977442190,-862.06,0.00017255,2]
[346439096,1734977442199,-500.0,0.00017255,2]
[346439097,1734977442208,-1687.29,0.00017255,2]
[346439098,1734977442217,-2928.48,0.00017255,2]
[346439099,1734977442226,-500.0,0.00017255,2]
[346439100,1734977442235,-500.0,0.00017255,2]
[346439101,1734977442244,-1483.36,0.00017255,2]
[346439102,1734977442253,-3327.2,0.00017255,2]
[346439103,1734977442262,-2194.06,0.00017255,2]
[346439104,1734977442271,-541.0,0.00017255,2]
[346439105,1734977442280,-803.6,0.00017255,2]
[346439106,1734977442289,-500.0,0.00017255,2]
[346439107,1734977442299,-500.0,0.00017255,2]
[346439108,1734977442308,-500.0,0.00017255,2]
[346439109,1734977442317,-2147.03,0.00017255,2]
[346439110,1734977442327,-217.68148574,0.00017255,2]
[346439111,1734977442336,-500.0,0.00017255,2]
[346439112,1734977442345,-1135.53,0.00017255,2]
[346439113,1734977442354,-1066.79,0.00017255,2]
[346439114,1734977442363,-88652.3837,0.00017255,2]
[346439115,1734977442373,-150.0,0.00017266,2]
[346439116,1734977442382,-150.0,0.00017294,2]
[346439117,1734977442393,-5556.72937356,0.00017337,2]
[346439118,1734977442402,-13728.98,0.00017354,2]
[346439119,1734977442411,-1527.72,0.00017354,2]
[346439120,1734977442421,-500.0,0.00017354,2]
[346439121,1734977442430,-4710.0,0.00017354,2]
[346439122,1734977442439,-7787.01,0.00017354,2]
[346439123,1734977442448,-11822.31,0.00017354,2]
[346439124,1734977442460,-5028.87,0.00017354,2]
[346439125,1734977442470,-1366.87,0.00017354,2]
[346439126,1734977442479,-4241.28,0.00017354,2]
[346439127,1734977442488,-10756.14,0.00017354,2]
[346439128,1734977442499,-9519.25,0.00017354,2]
[346439129,1734977442508,-10041.78,0.00017354,2]
[346439130,1734977442517,-2589.73,0.00017354,2]
[346439131,1734977442526,-2842.49,0.00017354,2]
[346439132,1734977442535,-10734.95,0.00017354,2]
[346439133,1734977442545,-2918.22,0.00017354,2]
[346439134,1734977442554,-1137.2,0.00017354,2]
[346439135,1734977442563,-1939.55,0.00017354,2]
[346439136,1734977442571,-1549.17,0.00017354,2]
[346439137,1734977442580,-2613.36,0.00017354,2]
[346439138,1734977442590,-4120.86,0.00017354,2]
[346439139,1734977442599,-4034.11,0.00017354,2]
[346439140,1734977442608,-1116.79,0.00017354,2]
[346439141,1734977442618,-1681.25,0.00017355,2]
[346439142,1734977442627,-2582.69,0.00017355,2]
[346439143,1734977442637,-1908.15,0.00017355,2]
[346439144,1734977442646,-500.0,0.00017355,2]
[346439145,1734977442655,-500.0,0.00017355,2]
[346439146,1734977442664,-500.0,0.00017355,2]
[346439147,1734977442674,-2509.44,0.00017355,2]
[346439148,1734977442683,-500.0,0.00017355,2]
[346439149,1734977442693,-798.72,0.00017355,2]
[346439150,1734977442702,-500.0,0.00017355,2]
[346439151,1734977442711,-2542.39,0.00017355,2]
[346439152,1734977442720,-2833.56,0.00017355,2]
[346439153,1734977442729,-2333.1,0.00017355,2]
[346439154,1734977442738,-1958.84,0.00017355,2]
[346439156,1734977442748,-500.0,0.00017355,2]
[346439158,1734977442757,-1607.75,0.00017355,2]
[346439160,1734977442765,-2045.66,0.00017355,2]
[346439161,1734977442774,-1604.12,0.00017355,2]
[346439163,1734977442783,-500.0,0.00017355,2]
[346439165,1734977442794,-502.2826866,0.00017355,2]
[346439166,1734977442803,-2773.66,0.00017355,2]
[346439167,1734977442812,-500.0,0.00017355,2]
[346439168,1734977442822,-1343.4,0.00017355,2]
[346439169,1734977442831,-1931.96,0.00017355,2]
[346439170,1734977442840,-2725.12,0.00017355,2]
[346439171,1734977442849,-1168.23,0.00017355,2]
[346439174,1734977442858,-500.0,0.00017355,2]
[346439175,1734977442867,-1476.6,0.00017355,2]
[346439176,1734977442876,-1341.63,0.00017355,2]
[346439177,1734977442886,-501.34916681,0.00017355,2]
[346439178,1734977442895,-500.0,0.00017355,2]
[346439179,1734977442904,-2082.28,0.00017355,2]
[346439180,1734977442913,-1542.31,0.00017355,2]
[346439181,1734977442923,-1295.48,0.00017355,2]
[346439182,1734977442933,-1238.39,0.00017355,2]
[346439183,1734977442943,-1567.96,0.00017355,2]
[346439184,1734977442952,-588.49,0.00017355,2]
[346439185,1734977442961,-1328.88,0.00017355,2]
[346439186,1734977442971,-1281.64,0.00017355,2]
[346439187,1734977442980,-4567.11,0.00017355,2]
[346439188,1734977442989,-3112.05,0.00017355,2]
[346439189,1734977442998,-4706.29,0.00017355,2]
[346439190,1734977443007,-1043.29,0.00017355,2]
[346439191,1734977443016,-8427.63,0.00017355,2]
[346439192,1734977443025,-1593.79,0.00017355,2]
[346439193,1734977443034,-2118.0,0.00017355,2]
[346439194,1734977443043,-9267.46,0.00017355,2]
[346439195,1734977443052,-44369.85,0.00017355,2]
[346439196,1734977443061,-1282.1,0.00017355,2]
[346439197,1734977443069,-621.54,0.00017355,2]
[346439198,1734977443078,-5956.43,0.00017355,2]
[346439199,1734977443087,-3272.82,0.00017355,2]
[346439200,1734977443097,-3597.09,0.00017355,2]
[346439201,1734977443106,-1745.41,0.00017355,2]
[346439202,1734977443115,-526.94,0.00017355,2]
[346439203,1734977443124,-2518.23,0.00017355,2]
[346439204,1734977443133,-2278.59,0.00017355,2]
[346439205,1734977443143,-1863.78,0.00017355,2]
[346439206,1734977443152,-1551.7,0.00017355,2]
[346439207,1734977443161,-6248.1,0.00017355,2]
[346439208,1734977443171,-32149.57,0.00017355,2]
[346439209,1734977443180,-2026.04,0.00017355,2]
[346439210,1734977443189,-1695.9,0.00017355,2]
[346439211,1734977443198,-790.17,0.00017355,2]
[346439212,1734977443207,-4694.56,0.00017355,2]
[346439213,1734977443216,-1419.12,0.00017355,2]
[346439214,1734977443225,-2029.92,0.00017355,2]
[346439215,1734977443234,-4121.33,0.00017355,2]
[346439216,1734977443244,-1514.75,0.00017355,2]
[346439217,1734977443253,-3179.6,0.00017355,2]
[346439218,1734977443262,-500.0,0.00017355,2]
[346439220,1734977443271,-500.0,0.00017355,2]
[346439221,1734977443280,-689.9,0.00017355,2]
[346439222,1734977443289,-5903.64,0.00017355,2]
[346439223,1734977443298,-617.83,0.00017355,2]
[346439224,1734977443307,-1119.03,0.00017355,2]
[346439225,1734977443316,-500.0,0.00017355,2]
[346439226,1734977443325,-3238.14,0.00017355,2]
[346439227,1734977443335,-565.57,0.00017355,2]
[346439228,1734977443345,-3938.7,0.00017355,2]
[346439229,1734977443354,-2399.52,0.00017355,2]
[346439230,1734977443363,-2876.98,0.00017355,2]
[346439231,1734977443372,-500.0,0.00017355,2]
[346439232,1734977443381,-1057.08,0.00017355,2]
[346439233,1734977443392,-500.0,0.00017355,2]
[346439234,1734977443400,-7265.32,0.00017355,2]
[346439235,1734977443409,-500.0,0.00017355,2]
[346439236,1734977443418,-2305.08,0.00017355,2]
[346439237,1734977443427,-4442.92,0.00017355,2]
[346439238,1734977443436,-3098.29,0.00017355,2]
[346439239,1734977443445,-2131.74,0.00017356,2]
[346439240,1734977443454,-639.04,0.00017356,2]
[346439241,1734977443466,-1241.7,0.00017356,2]
[346439242,1734977443475,-1126.17,0.00017356,2]
[346439243,1734977443484,-500.0,0.00017356,2]
[346439244,1734977443494,-1773.73,0.00017356,2]
[346439245,1734977443505,-1437.8,0.00017356,2]
[346439246,1734977443514,-1037.87,0.00017356,2]
[346439247,1734977443524,-500.0,0.00017356,2]
[346439248,1734977443534,-1688.18,0.00017356,2]
[346439249,1734977443544,-1671.15,0.00017356,2]
[346439250,1734977443554,-1160.28,0.00017356,2]
[346439251,1734977443563,-1353.56,0.00017356,2]
[346439252,1734977443572,-500.0,0.00017356,2]
[346439253,1734977443581,-2839.59,0.00017356,2]
[346439254,1734977443590,-500.0,0.00017356,2]
[346439255,1734977443599,-550.42,0.00017356,2]
[346439256,1734977443608,-845.26,0.00017356,2]
[346439257,1734977443617,-1777.47,0.00017356,2]
[346439258,1734977443626,-1529.16,0.00017356,2]
[346439259,1734977443636,-500.0,0.00017356,2]
[346439260,1734977443645,-500.0,0.00017356,2]
[346439261,1734977443655,-500.0,0.00017356,2]
[346439262,1734977443664,-500.0,0.00017356,2]
[346439263,1734977443673,-1983.41,0.00017356,2]
[346439264,1734977443682,-624.69,0.00017356,2]
[346439265,1734977443691,-1572.78,0.00017356,2]
[346439266,1734977443700,-1708.96,0.00017356,2]
[346439267,1734977443709,-500.0,0.00017356,2]
[346439268,1734977443719,-2716.88,0.00017356,2]
[346439269,1734977443728,-1922.26,0.00017356,2]
[346439270,1734977443737,-1485.93,0.00017356,2]
[346439271,1734977443746,-1846.17,0.00017356,2]
[346439272,1734977443756,-770.49,0.00017356,2]
[346439273,1734977443766,-2824.81,0.00017356,2]
[346439274,1734977443775,-1613.12,0.00017356,2]
[346439275,1734977443783,-2143.02,0.00017356,2]
[346439276,1734977443793,-500.0,0.00017356,2]
[346439277,1734977443802,-500.0,0.00017356,2]
[346439278,1734977443812,-3134.48,0.00017356,2]
[346439279,1734977443821,-1281.42,0.00017356,2]
[346439280,1734977443830,-3470.65,0.00017356,2]
[346439281,1734977443839,-1461.67,0.00017356,2]
[346439282,1734977443848,-500.0,0.00017356,2]
[346439283,1734977443857,-2249.45,0.00017356,2]
[346439284,1734977443866,-2471.58,0.00017356,2]
[346439285,1734977443875,-5556.72937356,0.00017428,2]
[346439286,1734977443884,-150.0,0.00017447,2]
[346439287,1734977443894,-500.0,0.00017456,2]
[346439288,1734977443903,-500.0,0.00017456,2]
[346439289,1734977443913,-664.34,0.00017456,2]
[346439290,1734977443923,-1236.55,0.00017456,2]
[346439291,1734977443932,-500.0,0.00017456,2]
[346439292,1734977443941,-1042.03,0.00017456,2]
[346439293,1734977443950,-769.3,0.00017456,2]
[346439294,1734977443960,-500.0,0.00017456,2]
[346439295,1734977443969,-940.69,0.00017456,2]
[346439296,1734977443979,-500.0,0.00017456,2]
[346439297,1734977443988,-500.0,0.00017456,2]
[346439298,1734977443998,-500.0,0.00017456,2]
[346439299,1734977444007,-830.96,0.00017456,2]
[346439300,1734977444017,-1054.24,0.00017456,2]
[346439301,1734977444025,-500.0,0.00017456,2]
[346439302,1734977444034,-500.0,0.00017456,2]
[346439303,1734977444044,-850.34,0.00017456,2]
[346439304,1734977444054,-500.0,0.00017456,2]
[346439305,1734977444063,-583.96,0.00017456,2]
[346439306,1734977444072,-500.0,0.00017456,2]
[346439307,1734977444081,-500.0,0.00017456,2]
[346439308,1734977444091,-500.0,0.00017456,2]
[346439309,1734977444100,-500.0,0.00017456,2]
[346439310,1734977444109,-594.4,0.00017456,2]
[346439311,1734977444119,-500.0,0.00017456,2]
[346439312,1734977444128,-500.0,0.00017456,2]
[346439313,1734977444137,-500.0,0.00017456,2]
[346439314,1734977444147,-500.0,0.00017456,2]
[346439315,1734977444155,-500.0,0.00017456,2]
[346439316,1734977444164,-593.73,0.00017456,2]
[346439317,1734977444174,-569.52,0.00017456,2]
[346439318,1734977444183,-500.0,0.00017456,2]
[346439319,1734977444191,-755.57,0.00017456,2]
[346439320,1734977444200,-1538.07,0.00017456,2]
[346439321,1734977444209,-609.95,0.00017456,2]
[346439322,1734977444219,-500.0,0.00017456,2]
[346439323,1734977444228,-500.0,0.00017456,2]
[346439324,1734977444237,-637.39,0.00017456,2]
[346439325,1734977444246,-528.39,0.00017456,2]
[346439326,1734977444255,-538.7,0.00017456,2]
[346439327,1734977444265,-607.39,0.00017456,2]
[346439328,1734977444274,-500.0,0.00017456,2]
[346439329,1734977444283,-516.16,0.00017456,2]
[346439330,1734977444292,-500.0,0.00017456,2]
[346439331,1734977444302,-500.0,0.00017456,2]
[346439332,1734977444311,-537.06,0.00017456,2]
[346439333,1734977444321,-500.0,0.00017456,2]
[346439334,1734977444330,-511.46,0.00017456,2]
[346439335,1734977444340,-500.0,0.00017456,2]
[346439336,1734977444349,-929.41,0.00017456,2]
[346439337,1734977444358,-585.33,0.00017456,2]
[346439338,1734977444367,-1286.35,0.00017456,2]
[346439339,1734977444377,-500.0,0.00017456,2]
[346439340,1734977444612,-500.0,0.00017456,2]
[346439341,1734977444622,-1513.23,0.00017456,2]
[346439342,1734977444631,-500.0,0.00017456,2]
[346439343,1734977444641,-500.0,0.00017456,2]
[346439344,1734977444651,-500.0,0.00017456,2]
[346439345,1734977444660,-500.0,0.00017456,2]
[346439346,1734977444669,-1207.09,0.00017456,2]
[346439347,1734977444678,-500.0,0.00017456,2]
[346439348,1734977444687,-500.0,0.00017456,2]
[346439349,1734977444695,-500.0,0.00017456,2]
[346439350,1734977444705,-1083.72,0.00017456,2]
[346439351,1734977444714,-500.0,0.00017456,2]
[346439352,1734977444723,-500.0,0.00017456,2]
[346439353,1734977444732,-500.0,0.00017456,2]
[346439354,1734977444742,-500.0,0.00017456,2]
[346439355,1734977444751,-500.0,0.00017456,2]
[346439356,1734977444760,-500.0,0.00017456,2]
[346439357,1734977444769,-500.0,0.00017456,2]
[346439358,1734977444780,-500.0,0.00017456,2]
[346439359,1734977444789,-1674.27,0.00017456,2]
[346439360,1734977444799,-500.0,0.00017456,2]
[346439361,1734977444811,-500.0,0.00017456,2]
[346439362,1734977444820,-283.92671316,0.00017456,2]
[346439363,1734977444833,-1269.58,0.00017456,2]
[346439364,1734977444842,-593.38,0.00017456,2]
[346439365,1734977444852,-1107.81,0.00017456,2]
[346439366,1734977444861,-500.0,0.00017456,2]
[346439367,1734977444870,-1014.9,0.00017456,2]
[346439368,1734977444880,-500.0,0.00017456,2]
[346439369,1734977444893,-500.0,0.00017456,2]
[346439370,1734977444903,-500.0,0.00017456,2]
[346439371,1734977444915,-500.0,0.00017456,2]
[346439372,1734977444924,-500.0,0.00017456,2]
[346439373,1734977444933,-500.0,0.00017456,2]
[346439374,1734977444942,-548.22,0.00017456,2]
[346439375,1734977444952,-500.0,0.00017456,2]
[346439376,1734977444962,-500.0,0.00017456,2]
[346439377,1734977444971,-500.0,0.00017456,2]
[346439378,1734977444980,-500.0,0.00017456,2]
[346439379,1734977444990,-796.98,0.00017456,2]
[346439380,1734977444999,-500.0,0.00017456,2]
[346439381,1734977445009,-552.71,0.00017456,2]
[346439382,1734977445018,-500.0,0.00017456,2]
[346439383,1734977445028,-1761.4,0.00017456,2]
[346439384,1734977445037,-500.0,0.00017456,2]
[346439385,1734977445047,-1474.52,0.00017456,2]
[346439386,1734977445056,-500.0,0.00017456,2]
[346439387,1734977445065,-1350.5,0.00017456,2]
[346439388,1734977445074,-717.33,0.00017456,2]
[346439389,1734977445083,-500.0,0.00017456,2]
[346439390,1734977445092,-500.0,0.00017456,2]
[346439391,1734977445101,-500.0,0.00017456,2]
[346439392,1734977445111,-1199.65,0.00017456,2]
[346439393,1734977445120,-500.0,0.00017456,2]
[346439394,1734977445128,-517.05002436,0.00017456,2]
[346439395,1734977445137,-500.0,0.00017456,2]
[346439396,1734977445147,-672.41,0.00017456,2]
[346439397,1734977445156,-500.0,0.00017456,2]
[346439398,1734977445166,-500.0,0.00017456,2]
[346439399,1734977445175,-700.0,0.00017456,2]
[346439400,1734977445184,-526.64,0.00017456,2]
[346439401,1734977445194,-1404.04,0.00017456,2]
[346439402,1734977445203,-1306.12,0.00017456,2]
[346439403,1734977445213,-1309.06,0.00017456,2]
[346439404,1734977445222,-542.39723559,0.00017456,2]
[346439405,1734977445231,-501.18,0.00017456,2]
[346439406,1734977445241,-500.0,0.00017456,2]
[346439407,1734977445250,-500.0,0.00017456,2]
[346439408,1734977445259,-500.0,0.00017456,2]
[346439409,1734977445269,-573.84,0.00017456,2]
[346439410,1734977445278,-795.77,0.00017456,2]
[346439411,1734977445287,-1323.97,0.00017456,2]
[346439412,1734977445296,-500.0,0.00017456,2]
[346439413,1734977445306,-500.0,0.00017456,2]
[346439414,1734977445316,-500.0,0.00017456,2]
[346439415,1734977445326,-500.0,0.00017456,2]
[346439416,1734977445336,-501.94428188,0.00017456,2]
[346439417,1734977445345,-857.65,0.00017456,2]
[346439418,1734977445354,-1059.49,0.00017456,2]
[346439419,1734977445364,-872.17,0.00017456,2]
[346439420,1734977445373,-500.0,0.00017456,2]
[346439421,1734977445382,-500.0,0.00017456,2]
[346439422,1734977445392,-456.74211503,0.00017456,2]
[346439423,1734977445402,-721.2,0.00017456,2]
[346439424,1734977445411,-987.94,0.00017456,2]
[346439425,1734977445420,-500.0,0.00017456,2]
[346439426,1734977445430,-683.97,0.00017456,2]
[346439427,1734977445440,-500.0,0.00017456,2]
[346439428,1734977445449,-782.01,0.00017456,2]
[346439429,1734977445460,-218.67831585,0.00017456,2]
[346439430,1734977445471,-500.0,0.00017456,2]
[346439431,1734977445480,-500.0,0.00017456,2]
[346439432,1734977445489,-500.0,0.00017456,2]
[346439433,1734977445498,-500.0,0.00017456,2]
[346439434,1734977445508,-1329.49,0.00017456,2]
[346439435,1734977445518,-689.2,0.00017456,2]
[346439436,1734977445527,-946.6,0.00017456,2]
[346439437,1734977445537,-500.0,0.00017456,2]
[346439438,1734977445546,-500.0,0.00017456,2]
[346439439,1734977445555,-500.0,0.00017456,2]
[346439440,1734977445565,-500.0,0.00017456,2]
[346439441,1734977445574,-500.0,0.00017456,2]
[346439442,1734977445583,-500.0,0.00017456,2]
[346439443,1734977445592,-500.0,0.00017456,2]
[346439444,1734977445601,-500.0,0.00017456,2]
[346439445,1734977445610,-500.0,0.00017456,2]
[346439446,1734977445619,-501.5906094,0.00017456,2]
[346439447,1734977445628,-500.0,0.00017456,2]
[346439448,1734977445638,-1603.18,0.00017456,2]
[346439449,1734977445647,-500.0,0.00017456,2]
[346439450,1734977445656,-500.0,0.00017456,2]
[346439451,1734977445665,-538.38,0.00017456,2]
[346439452,1734977445675,-500.0,0.00017456,2]
[346439453,1734977445684,-500.0,0.00017456,2]
[346439454,1734977445693,-500.0,0.00017456,2]
[346439455,1734977445703,-345.29119465,0.00017456,2]
[346439456,1734977445712,-500.0,0.00017456,2]
[346439457,1734977445721,-892.68,0.00017456,2]
[346439458,1734977445730,-500.0,0.00017456,2]
[346439459,1734977445739,-502.65,0.00017456,2]
[346439460,1734977445749,-500.0,0.00017456,2]
[346439461,1734977445759,-593.84,0.00017456,2]
[346439462,1734977445768,-500.0,0.00017456,2]
[346439464,1734977445777,-500.0,0.00017456,2]
[346439465,1734977445786,-500.0,0.00017456,2]
[346439467,1734977445796,-500.0,0.00017456,2]
[346439468,1734977445805,-908.28,0.00017456,2]
[346439470,1734977445814,-500.0,0.00017456,2]
[346439471,1734977445823,-772.04,0.00017456,2]
[346439472,1734977445832,-500.0,0.00017456,2]
[346439473,1734977445841,-500.0,0.00017456,2]
[346439474,1734977445850,-500.0,0.00017456,2]
[346439475,1734977445859,-439.6269787,0.00017456,2]
[346439476,1734977445868,-577.46,0.00017456,2]
[346439477,1734977445878,-500.0,0.00017456,2]
[346439478,1734977445887,-500.0,0.00017456,2]
[346439479,1734977445896,-500.0,0.00017456,2]
[346439480,1734977445906,-710.98,0.00017456,2]
[346439481,1734977445915,-500.0,0.00017456,2]
[346439482,1734977445925,-500.0,0.00017456,2]
[346439483,1734977445935,-801.87,0.00017456,2]
[346439484,1734977445944,-565.11,0.00017456,2]
[346439485,1734977445954,-711.47,0.00017456,2]
[346439486,1734977445964,-500.0,0.00017456,2]
[346439487,1734977445973,-500.0,0.00017456,2]
[346439488,1734977445983,-500.0,0.00017456,2]
[346439489,1734977445992,-500.0,0.00017456,2]
[346439490,1734977446001,-500.0,0.00017456,2]
[346439491,1734977446011,-500.0,0.00017456,2]
[346439492,1734977446019,-500.0,0.00017456,2]
[346439493,1734977446029,-576.69,0.00017456,2]
[346439494,1734977446038,-500.0,0.00017456,2]
[346439495,1734977446048,-813.71,0.00017456,2]